Cogmind - Beta 13 @@@ ROGUE MODE // 2024.04.14 @ 23:43:09 Player: m1m1c Result: Destroyed by G-34 Mercenary with Small Laser Performance ------------- Evolutions (1) 500 Regions Visited (4) 800 Robots Destroyed (14) 70 Value Destroyed (192) 192 Prototype IDs (2) 40 Alien Tech Used (0) 0 Bonus (-70) -70 TOTAL SCORE: 1532 Bonus ------- Follower Combat Kills 54 Friendly Fire -124 Cogmind --------- Core Integrity 0/400 Matter 280/300 Energy 63/100 System Corruption 0% Temperature Cool (6) Movement Core (50) Location -9/Storage Parts ------- > --- POWER (1) -------- (None) > --- PROPULSION (4) --- (None) > --- UTILITY (2) ------ (None) > --- WEAPON (2) ------- (None) > --- INVENTORY (5) ---- Signal Interpreter ECM Suite Rocket Launcher Rocket Launcher Peak State ------------ > --- POWER ------------ Light Ion Engine > --- PROPULSION ------- Flight Unit Flight Unit Flight Unit VTOL Module > --- UTILITY ---------- Small Storage Unit Drone Bay > --- WEAPON ----------- Improved Medium Laser Advanced Beam Cannon > --- INVENTORY -------- Light Ion Engine Heat Sink ECM Suite Core Shielding [Rating: 18] Favorites ----------- Power Light Ion Engine Engine Light Ion Engine Propulsion Flight Unit Leg Aluminum Leg Hover Unit Hover Unit Flight Unit Flight Unit Utility Small Storage Unit Device Drone Bay Storage Small Storage Unit Protection Core Shielding Weapon Light Assault Rifle Energy Gun Small Laser Energy Cannon Advanced Beam Cannon Ballistic Gun Light Assault Rifle Launcher Rocket Launcher Special Weapon Mining Laser Build | -11 -10 -10 -9 -9 ------- Run | Yrd Mat Min Mat Sto Slots Evolved 2 | . . . 2 . Power . | . . . . . Propulsion 2 | . . . 2 . Utility . | . . . . . Weapon . | . . . . . Parts Attached 47 | 5 3 2 9 28 Power 5 | 1 2 . . 2 Engine 5 | 1 2 . . 2 Core . | . . . . . Reactor . | . . . . . Propulsion 19 | 2 . 2 6 9 Treads . | . . . . . Leg 2 | 2 . . . . Wheel . | . . . . . Hover 4 | . . . . 4 Flight 13 | . . 2 6 5 Utility 13 | 1 . . 1 11 Device 10 | . . . 1 9 Storage 1 | 1 . . . . Processor . | . . . . . Hackware . | . . . . . Protection 2 | . . . . 2 Artifact . | . . . . . Weapon 10 | 1 1 . 2 6 Energy Gun 2 | . 1 . . 1 Energy Cannon 3 | . . . . 3 Ballistic Gun 2 | 1 . . 1 . Ballistic Cannon . | . . . . . Launcher 1 | . . . . 1 Special Weapon 2 | . . . 1 1 Impact Weapon . | . . . . . Slashing Weapon . | . . . . . Piercing Weapon . | . . . . . Special Melee Weapon . | . . . . . Unidentified Prototypes 2 | . . . . 2 Parts Lost 20 | . 3 . 4 13 Power 4 | . 2 . 1 1 Propulsion 13 | . 1 . 2 10 Utility 1 | . . . . 1 Weapon 2 | . . . 1 1 Highest Loss Streak 9 | . 2 . 2 9 To Critical Strikes . | . . . . . Average Slot Usage (%) 70 | . 72 64 70 71 Engine 8 | . 14 14 3 4 Leg 7 | . 21 2 . . Hover 3 | . . . . 9 Flight 19 | . . 19 42 25 Device 5 | . . . 10 9 Storage 12 | . 14 14 11 11 Energy Gun 3 | . 7 5 . 1 Energy Cannon 2 | . . . . 5 Ballistic Gun 5 | . 14 7 2 . Naked Turns 1 | . . . . 1 Heaviest Build 21 | 9 12 10 10 21 Greatest Support 24 | 20 20 10 16 24 Greatest Overweight (x) 4 | 1 . 2 . 4 Average Overweight (x) . | . . . . . Largest Inventory Capacity 8 | 8 8 8 8 8 Average Capacity 7 | 6 8 8 8 7 Most Carried 8 | 3 7 8 8 8 Average Carried 5 | 1 5 7 5 6 Final Capacity 8 | 8 8 8 8 5 Final Carried 8 | 3 7 8 5 4 Class Distribution -------------------- 70% | Mutant 15% | Sprinter 12% | Scavenger-Sprinter Dominant Class ---------------- Mutant | -10/Materials Mutant | -10/Mines Sprinter | -9/Materials Mutant | -9/Storage Resources | -11 -10 -10 -9 -9 ----------- Run | Yrd Mat Min Mat Sto Matter Collected 619 | 181 110 23 . 305 Remotely . | . . . . . Salvage Created 314 | . 211 40 18 45 Parts 27 | . 19 4 3 1 Haulers Intercepted 1 | . . . . 1 Recyclers Shooed 2 | . 1 . . 1 Parts Field Recycled . | . . . . . Retrieved Matter . | . . . . . Parts Self-Destructed . | . . . . . Prevented . | . . . . . Kills | -11 -10 -10 -9 -9 ------- Run | Yrd Mat Min Mat Sto Combat Hostiles Destroyed 11 | . 7 3 1 . Guns 10 | . 7 3 . . Cannons 1 | . . . 1 . Classes Destroyed 6 | . 4 . . 2 Hauler 1 | . . . . 1 Recycler 1 | . 1 . . . Drone 1 | . . . . 1 Watcher 1 | . 1 . . . Swarmer 9 | . 6 3 . . Grunt 2 | . 1 . 1 . Best Kill Streak 7 | . 7 3 1 1 Combat Bots Only 6 | . 6 3 1 . Max Kills in Single Turn 1 | . 1 1 1 1 Gunslinging . | . . . . . Exploded . | . . . . . Melee . | . . . . . Uniques/NPCs Destroyed . | . . . . . Combat | -11 -10 -10 -9 -9 -------- Run | Yrd Mat Min Mat Sto Hostile Shots Fired 244 | . 79 7 42 116 Missed 81 | . 21 . 22 38 Damage Taken 1820 | . 536 117 351 816 Core 640 | . 171 60 153 256 Absorbed by Shields 37 | . . . . 37 Redirected to Shielding 13 | . . . . 13 Core Remaining (%) 53 | 100 . 7 . . Volleys Fired 48 | . 26 3 7 12 Largest 2 | . 2 2 1 1 Hottest 100 | . 60 60 100 100 Shots Fired 64 | . 39 6 7 12 Gun 50 | . 39 6 5 . Cannon 8 | . . . . 8 Launcher . | . . . . . Special 6 | . . . 2 4 Kinetic 34 | . 26 3 5 . Thermal 30 | . 13 3 2 12 Explosive . | . . . . . Electromagnetic . | . . . . . Robot Hit Streak 8 | . 8 3 5 2 Robot Miss Streak 3 | . 3 1 1 3 Penetration Max . | . . . . . Secondary Targets 3 | . 1 2 . . Max Gunslinging Chain 1 | . 1 1 . . Shots Hit Robots 38 | . 25 3 5 5 Core Hits 20 | . 14 3 1 2 Critical Kills . | . . . . . Critical Parts Destroyed . | . . . . . Critical Strikes . | . . . . . Melee Attacks . | . . . . . Impact . | . . . . . Slashing . | . . . . . Piercing . | . . . . . Sneak Attacks . | . . . . . Combat Hostiles . | . . . . . Follow-up Attacks . | . . . . . Damage Inflicted 503 | . 245 31 54 173 Guns 306 | . 245 31 30 . Cannons 104 | . . . . 104 Explosions . | . . . . . Melee . | . . . . . Ramming 21 | . . . . 21 Kinetic 162 | . 132 . 30 . Thermal 320 | . 113 31 24 152 Explosive . | . . . . . Electromagnetic . | . . . . . Impact . | . . . . . Slashing . | . . . . . Piercing . | . . . . . Highest Corruption . | . . . . . Average Corruption . | . . . . . Corruption Purged . | . . . . . Corruption Blocked . | . . . . . Overload Shots . | . . . . . Overflow Damage 4 | . . . . 4 Projectiles 4 | . . . . 4 Explosions . | . . . . . Melee . | . . . . . Knockbacks . | . . . . . Impact . | . . . . . Kinetic . | . . . . . Secondary . | . . . . . Self-Inflicted Damage 10 | . . . . 10 Shots . | . . . . . Rammed 3 | . . . . 3 Targets Rammed 3 | . . . . 3 Kicked . | . . . . . Crushed . | . . . . . Highest Temperature 162 | . 76 40 25 162 Average Temperature 45 | . 30 23 9 63 Received Heat Transfer 585 | . 132 . 138 315 Siege Activations . | . . . . . Robots Corrupted . | . . . . . Combat Hostiles . | . . . . . Parts Fried . | . . . . . Impact Corruptions . | . . . . . Robots Melted . | . . . . . Combat Hostiles . | . . . . . Parts Melted . | . . . . . Heat Transferred 660 | . 250 75 50 285 Parts Sabotaged . | . . . . . Parts Stolen . | . . . . . Parts Stripped . | . . . . . Power Chain Reactions . | . . . . . Alert | -11 -10 -10 -9 -9 ------- Run | Yrd Mat Min Mat Sto Peak Influence 249 | . 172 151 143 249 Initial 66 | . . 66 58 59 Average 95 | . 104 134 83 98 Maximum Alert Level 1 | . . . . 1 Low Security (%) 98 | 100 100 100 100 95 Level 1 1 | . . . . 4 Level 2 . | . . . . . Level 3 . | . . . . . Level 4 . | . . . . . Level 5 . | . . . . . High Security . | . . . . . Max Security . | . . . . . Squads Dispatched 3 | . . . . 3 Investigation . | . . . . . Extermination . | . . . . . Reinforcement 1 | . . . . 1 Assault 2 | . . . . 2 Garrison . | . . . . . Intercept . | . . . . . Searches Triggered . | . . . . . Construction Impeded . | . . . . . Haulers Reinforced . | . . . . . Active Scanning Responses . | . . . . . Cargo Convoy Interrupts . | . . . . . Stealth | -11 -10 -10 -9 -9 --------- Run | Yrd Mat Min Mat Sto Distress Signals 1 | . . . . 1 Communications Jammed . | . . . . . Distress Signals . | . . . . . Times Spotted 71 | . 11 16 11 33 Peak Tracking Total 20 | . 6 20 8 12 Tactical Retreats 6 | . . . 2 4 Traps | -11 -10 -10 -9 -9 ------- Run | Yrd Mat Min Mat Sto Traps Triggered 5 | . . . 1 4 Indirectly . | . . . . . Trap Hack Attempts . | . . . . . Triggered . | . . . . . Disarmed . | . . . . . Reprogrammed . | . . . . . Reused . | . . . . . Traps Extracted . | . . . . . Installed . | . . . . . Triggered . | . . . . . Machines | -11 -10 -10 -9 -9 ---------- Run | Yrd Mat Min Mat Sto Machines Disabled 1 | . . . 1 . Max in Single Turn 1 | . . . 1 . Machines Repaired . | . . . . . Machines Dismantled . | . . . . . Machines Sabotaged . | . . . . . Overloaded Fab Kills . | . . . . . Hacking | -11 -10 -10 -9 -9 --------- Run | Yrd Mat Min Mat Sto Machines Accessed 4 | . . . 1 3 Terminals 3 | . . . . 3 Fabricators . | . . . . . Repair Stations . | . . . . . Recycling Units . | . . . . . Scanalyzers 1 | . . . 1 . Garrison Access . | . . . . . Total Hacks 6 | . . . 2 4 Successful 4 | . . . 2 2 Failed 2 | . . . . 2 Catastrophic 1 | . . . . 1 Database Lockouts . | . . . . . Manual 1 | . . . . 1 Terminals 4 | . . . . 4 Fabricators . | . . . . . Repair Stations . | . . . . . Recycling Units . | . . . . . Scanalyzers 2 | . . . 2 . Garrison Access . | . . . . . Terminal Hacks 2 | . . . . 2 Open Door 2 | . . . . 2 Fabricator Hacks . | . . . . . Repair Station Hacks . | . . . . . Recycling Unit Hacks . | . . . . . Scanalyzer 2 | . . . 2 . Insert Component 1 | . . . 1 . Analyze 1 | . . . 1 . Garrison Access Hacks . | . . . . . Unauthorized Hacks . | . . . . . Terminals . | . . . . . Fabricators . | . . . . . Repair Stations . | . . . . . Recycling Units . | . . . . . Scanalyzers . | . . . . . Garrison Access . | . . . . . Data Cores Recovered . | . . . . . Used . | . . . . . Hacking Detections 2 | . . . 1 1 Full Trace Events . | . . . . . Feedback Events . | . . . . . Feedback Blocked . | . . . . . Robot Schematics Acquired . | . . . . . Robots Built . | . . . . . Authchips . | . . . . . Time . | . . . . . Total Robot Build Rating . | . . . . . Part Schematics Acquired 1 | . . . 1 . Parts Built . | . . . . . Authchips . | . . . . . Time . | . . . . . Total Part Build Rating . | . . . . . Parts Repaired . | . . . . . Time . | . . . . . Parts Recycled . | . . . . . Recycled Matter . | . . . . . Retrieved Matter . | . . . . . Retrieved Components . | . . . . . Parts Scanalyzed 1 | . . . 1 . Part Schematics Acquired 1 | . . . 1 . Parts Damaged . | . . . . . Bothacking | -11 -10 -10 -9 -9 ------------ Run | Yrd Mat Min Mat Sto Used RIF Installer . | . . . . . Robots Hacked . | . . . . . Non-combat . | . . . . . Combat . | . . . . . Robot Hacks Applied . | . . . . . Relay Couplers Released . | . . . . . Fabnet Peak Effective % . | . . . . . Robots Rewired . | . . . . . Allies Hacked . | . . . . . Hacks Repelled . | . . . . . Allies | -11 -10 -10 -9 -9 -------- Run | Yrd Mat Min Mat Sto Total Allies 2 | . . . . 2 Largest Group 2 | . . . . 2 Highest-Rated Group 62 | . . . . 62 Highest-Rated Ally 31 | . . . . 31 Total Orders . | . . . . . Ally Attacks 16 | . . . . 16 Total Damage 314 | . . . . 314 Kills 5 | . . . . 5 Allies Corrupted . | . . . . . Allies Melted . | . . . . . Intel | -11 -10 -10 -9 -9 ------- Run | Yrd Mat Min Mat Sto Robot Analysis Total . | . . . . . Derelict Logs Recovered . | . . . . . Drone Launches 16 | . . . . 16 Drone Recoveries 2 | . . . . 2 Exploration | -11 -10 -10 -9 -9 ------------- Run | Yrd Mat Min Mat Sto Turns Passed 928 | 61 275 101 119 372 Spaces Moved 1046 | 49 167 174 236 420 Core 18 | 15 . . . 3 Treads . | . . . . . Legs 210 | 34 167 9 . . Wheels . | . . . . . Hover 116 | . . . . 116 Flight 702 | . . 165 236 301 Fastest Speed 29 | 50 120 37 31 29 Average Speed 61 | 103 120 49 32 54 Slowest Speed 250 | 120 120 200 37 250 Overloaded Moves . | . . . . . Propulsion Burnouts . | . . . . . Robots Hopped 20 | . . 2 9 9 Cave-ins Triggered . | . . . . . Exploration Rate (%) 25 | 4 23 28 15 57 Regions Visited 4 Branch Regions 2 Pre-discovered Areas . | . . . . . Known Exits Taken . | . . . . . Unknown Exits Taken 4 | 1 1 1 1 . Scrap Searched . | . . . . . Spaces Dug . | . . . . . Terrain Destroyed 1 | . . . . 1 Melee . | . . . . . Projectile 1 | . . . . 1 AOE . | . . . . . Terrain Rammed . | . . . . . Walls Destroyed . | . . . . . Machines Disabled . | . . . . . Actions | -11 -10 -10 -9 -9 --------- Run | Yrd Mat Min Mat Sto Total 1241 | 56 209 182 259 535 Wait 61 | . 2 . 13 46 Move 1012 | 48 166 170 222 406 Hop 10 | . . 1 4 5 Pick Up 25 | 3 9 1 1 11 Fast Attach 22 | 5 1 2 2 12 Attach 24 | . 2 . 7 15 Detach 11 | . . 2 3 6 Swap 1 | . . . . 1 Drop 16 | . 3 3 . 10 Fire 48 | . 26 3 7 12 Melee . | . . . . . Ram 3 | . . . . 3 Kick . | . . . . . Crush . | . . . . . Escape Stasis 8 | . . . . 8 Rewire . | . . . . . Trap . | . . . . . Miscellaneous . | . . . . . Route ------- -11/Scrapyard -10/Materials -10/Mines -9/Materials -9/Storage History --------- Turn | Location | Event 20 | -11/Scrapyard | Discovered new exit (range 16) 62 | -11/Scrapyard | Entered Materials 62 | -10/Materials | Discovered new exit (range 7) 196 | -10/Materials | Core integrity fell below 50% 308 | -10/Materials | Build established: Mutant 337 | -10/Materials | Entered Mines 418 | -10/Mines | Assembled infested the area 430 | -10/Mines | Core integrity fell below 20% 433 | -10/Mines | Discovered new exit (range 8) 438 | -10/Mines | Entered Materials 438 | -9/Materials | Evolved 2 slots: Propulsion x2 473 | -9/Materials | Discovered new exit (range 16) 557 | -9/Materials | Entered Storage 713 | -9/Storage | Met a pair of Derelict thieves 749 | -9/Storage | Lost 12 allies 830 | -9/Storage | Core integrity fell below 50% 883 | -9/Storage | Core integrity fell below 20% 928 | -9/Storage | Released all parts (4) 929 | -9/Storage | Destroyed by G-34 Mercenary with Small Laser Last Messages --------------- Field strength at 53. Field strength at 42. Hover Unit destroyed. Field strength at 33. Field strength at 18. Field strength at 8. R-06 Scavenger collects Lgt. Assault Rifle. Stasis field depleted. S-10 Pest destroyed. U-05 Engineer builds a Door. Hover Unit destroyed. U-05 Engineer lays Concrete. Rocket Launcher destroyed. Flight Unit destroyed. VTOL Module destroyed. U-05 Engineer destroyed. Released Adv. Beam Cannon. Released Sml. Storage Unit. Released Lgt. Ion Engine. Released Core Shielding. Map ----- +----------------------------------------------------+ | ??# ########+###### ##### "??" ## #??## | | ??# #???? ### ##??# ## #???? | | ??# #? """ #?# T#??############## #???? | | ??# # """ #?##" "###??????????????# #???? | | ??# # """ #?# #??????????????#%#???? | | ??# !=/ #?# ]]#??????????????#=#???? | | ??# = # """ #?#[[ ] #??????????????# #???? | | ??# !!# """ #?#[ #??????????????# #???? | | ??# !# """ #?########??????????????#%#???? | | ??# #?? ?????###??##???????????##%###?? | | ??# #???# ###?????! ?? #????????#??# #?? | | ??# #???##?????? #??????? #??# #?? | | ??# #??????????? #??????? ???# +?? | | ??# #???????????""" """ #??????" ???# #?? | | ??# #????????????"" """ #?????" ????## ##?? | | ??# #????????????"" """a#??""" ?????# #??? | | ??# #????????????? #??? ??????# #??? | | ??# #????????????? #??? ??????# #??? | | ??# #??############/##/######+######## #??" | | ??# #??? # k m # | | ####+####????????" + g + " | | # #????????" # ss""" Y###########+## " | | # #??????????# =%""" ""#???????* ???" | | # """#??????????# =%""" T"#??????? ???? | | # """#??????????#=[*!!g ""#??????] #??? | | # """#??????????#%@]* ###?????? ! #??? | | # """#????? ;|! !!! #???????######??? | | # """#????####### !! +?????????????? | | #/ #??????????# !! g #?????????????? | | # ?????????? #?????????????? | | # ##???????? g #?????????????? | | # #????????#####+##T## + ????????????? | | #########???????????????###? # ????????????? | | ???????????????????????????? #?????????????? | | ???????????????????????????? #?????????????? | | ???????????????????????????? ?#?????????????? | | ?????????????????????????????????????????????? | | ?????????????????????????????????????????????? | | ?????????????????????????????????????????????? | | ?????????????????????????????????????????????? | | ?????????????????????????????????????????????? | | ?????????????????????????????????????????????? | | ?????????????????????????????????????????????? | | ?????????????????????????????????????????????? | | ?????????????????????????????????????????????? | | ?????????????????????????????????????????????? | | ?????????????????????????????????????????????? | | | | | | | +----------------------------------------------------+ Best States ------------- Heat Dissipation 28 Energy Generation 10 Energy Capacity 250 Matter Stores 300 Matter Capacity 300 Sight Range 16 Robot Scan Range 14 Terrain Scan Density 10 ECM Strength 1 Core Shielding 20 Evasion (%) 64 Item Schematics ----------------- Flight Unit | -9/Materials | Scanalyzed Robot Schematics ------------------ None Fabricated ------------ Nothing Alien Tech Used ----------------- None Achievements -------------- Release The Drones! Challenges ------------ None Game ------ Seed SpikedSpliceProtomatter Manual? 0 Play Time 00:18:43 Cumulative 17.2 hours Start 2024.04.14 @ 23:24:32 End 2024.04.14 @ 23:43:09 Sessions 1 Manual Loads 0 Difficulty Rogue Special Mode None Game No. 59 Rogue 59 Adventurer 0 Explorer 0 Win Type - Total 0 Types 0/0/0/0/0/0/0/0/0 Lore% 14 Gallery% 23 Achievement% 20 Wizard Run 0 Options --------- Layout 1 ASCII 1 Keyboard 0 Movement Arrows Keybinds 0 Fullscreen 1 Font 18/SmallcapsGlow Map View 50x40 Zoom Use 0% Tactical HUD 0 Map Filters NONE Filters NONE Steam 1 RUN: 831c01e1-a5b6-4f95-8b3e-bb73fea8a2fd